lending/lending_fUSD_20260325
["ID","MTS","AMOUNT","RATE_DAILY","PERIOD"]
[408892668,1774401043864,-500.0,0.00015199,2]
[408892669,1774401043874,-500.0,0.00015199,2]
[408892670,1774401043883,-500.0,0.00015199,2]
[408892671,1774401043893,-500.0,0.00015199,2]
[408892672,1774401043902,-500.0,0.00015199,2]
[408892673,1774401043912,-500.0,0.00015199,2]
[408892674,1774401043921,-500.0,0.00015199,2]
[408892675,1774401043930,-500.0,0.00015199,2]
[408892676,1774401043940,-500.0,0.00015199,2]
[408892677,1774401043949,-500.0,0.00015199,2]
[408892678,1774401043958,-500.0,0.00015199,2]
[408892679,1774401043968,-500.0,0.00015199,2]
[408892680,1774401043977,-500.0,0.00015199,2]
[408892681,1774401043987,-500.0,0.00015199,2]
[408892682,1774401043996,-500.0,0.00015199,2]
[408892683,1774401044006,-500.0,0.00015199,2]
[408892684,1774401044015,-500.0,0.00015199,2]
[408892685,1774401044024,-500.0,0.00015199,2]
[408892686,1774401044034,-500.0,0.00015199,2]
[408892687,1774401044043,-500.0,0.00015199,2]
[408892688,1774401044053,-500.0,0.00015199,2]
[408892689,1774401044064,-500.0,0.00015199,2]
[408892690,1774401044075,-500.0,0.00015199,2]
[408892691,1774401044085,-500.0,0.00015199,2]
[408892692,1774401044094,-500.0,0.00015199,2]
[408892693,1774401044104,-500.0,0.00015199,2]
[408892694,1774401044114,-174.61919141,0.00015199,2]
[408892695,1774401044123,-500.0,0.00015199,2]
[408892696,1774401044132,-151.0,0.00015199,2]
[408892697,1774401044142,-500.0,0.00015199,2]
[408892698,1774401044152,-200.0,0.00015199,2]
[408892699,1774401044162,-250.0,0.00015199,2]
[408892700,1774401044171,-250.0,0.00015199,2]
[408892701,1774401044181,-250.0,0.00015199,2]
[408892702,1774401044192,-250.0,0.00015199,2]
[408892703,1774401044202,-250.0,0.00015199,2]
[408892704,1774401044212,-250.0,0.00015199,2]
[408892705,1774401044222,-693.3919763,0.00015199,2]
[408892706,1774401044232,-250.0,0.00015199,2]
[408892707,1774401044242,-250.0,0.00015199,2]
[408892708,1774401044252,-250.0,0.00015199,2]
[408892709,1774401044261,-250.0,0.00015199,2]
[408892710,1774401044271,-209.40437684,0.00015199,2]
[408892711,1774401044280,-250.0,0.00015199,2]
[408892712,1774401044291,-151.0,0.00015199,2]
[408892713,1774401044300,-262.90206542,0.00015199,2]
[408892714,1774401044310,-279.9045709,0.00015199,2]
[408892715,1774401044319,-743.50770149,0.00015199,2]
[408892716,1774401044329,-209.40437684,0.00015199,2]
[408892717,1774401044339,-500.0,0.00015199,2]
[408892718,1774401044349,-500.0,0.00015199,2]
[408892719,1774401044363,-500.0,0.00015199,2]
[408892720,1774401044372,-500.0,0.00015199,2]
[408892721,1774401044382,-500.0,0.00015199,2]
[408892722,1774401044391,-150.0,0.000152,2]
[408892723,1774401044402,-2000.0,0.00015216,2]
[408892724,1774401044411,-2000.0,0.00015216,2]
[408892725,1774401044420,-2000.0,0.00015216,2]
[408892726,1774401044430,-2000.0,0.00015216,2]
[408892727,1774401044441,-9905.5980765,0.00015254,2]
[408892728,1774401044451,-500.0,0.00015254,2]
[408892729,1774401044461,-151.0,0.00015254,2]
[408892730,1774401044470,-272.62944185,0.00015254,2]
[408892731,1774401044479,-1900.0,0.000153,5]
[408892732,1774401044488,-10272.10520533,0.00015309,2]
[408892733,1774401044498,-500.0,0.00015309,2]
[408892734,1774401044507,-151.0,0.00015309,2]
[408892735,1774401044517,-282.71673119,0.00015309,2]
[408892736,1774401044526,-200.0,0.00015334,2]
[408892737,1774401044535,-250.0,0.00015342,2]
[408892738,1774401044546,-2000.0,0.00015342,2]
[408892739,1774401044555,-759.99072283,0.00015342,2]
[408892740,1774401044564,-2000.0,0.00015342,2]
[408892741,1774401044573,-2000.0,0.00015342,2]
[408892742,1774401044583,-11464.22739943,0.0001535,2]
[408892743,1774401044592,-11707.88029305,0.0001535,2]
[408892744,1774401044602,-10652.17309792,0.00015364,2]
[408892745,1774401044611,-500.0,0.00015364,2]
[408892746,1774401044621,-151.0,0.00015364,2]
[408892747,1774401044631,-293.17725025,0.00015364,2]
[408892748,1774401044640,-1192.0,0.00015366,2]
[408892749,1774401044649,-150.0,0.0001538,2]
[408892750,1774401044659,-1192.0,0.00015397,2]
[408892751,1774401044669,-150.0,0.00015398,2]
[408892752,1774401044679,-4104.49,0.000154,2]
[408892753,1774401044688,-2400.0,0.000154,5]
[408892754,1774401044697,-423.0,0.00015402,2]
[408892755,1774401044707,-411.35,0.00015402,2]
[408892756,1774401044717,-265.51245262,0.00015402,2]
[408892757,1774401044726,-5888.0,0.00015408,2]
[408892758,1774401044736,-11046.30350255,0.00015419,2]
[408892759,1774401044745,-500.0,0.00015419,2]
[408892760,1774401044755,-151.0,0.00015419,2]
[408892761,1774401044764,-304.02480851,0.00015419,2]
[408892762,1774401044774,-979.16666667,0.00015424,2]
[408892763,1774401044783,-160.0,0.00015424,2]
[408892764,1774401044792,-350.0,0.00015437,3]
[408892765,1774401044802,-150.0,0.00015444,2]
[408892766,1774401044811,-1700.0,0.00015452,2]
[408892767,1774401044821,-1300.0,0.00015452,2]
[408892768,1774401044831,-1192.0,0.00015455,2]
[408892769,1774401044841,-11455.01673214,0.00015474,2]
[408892770,1774401044850,-500.0,0.00015474,2]
[408892771,1774401044860,-151.0,0.00015474,2]
[408892772,1774401044869,-315.27372642,0.00015474,2]
[408892773,1774401044879,-350.0,0.00015483,2]
[408892774,1774401044889,-350.0,0.00015498,2]
[408892775,1774401044899,-3491.44,0.000155,2]
[408892776,1774401044909,-400.0,0.000155,5]
[408892777,1774401044919,-259.3738,0.000155,2]
[408892778,1774401044928,-4000.0,0.00015507,2]
[408892779,1774401044938,-11878.85235123,0.00015529,2]
[408892780,1774401044948,-500.0,0.00015529,2]
[408892781,1774401044957,-151.0,0.00015529,2]
[408892782,1774401044966,-326.9388543,0.00015529,2]
[408892783,1774401044975,-2765.096,0.00015541,2]
[408892784,1774401044985,-6135.3955351,0.00015546,2]
[408892785,1774401044995,-183.073,0.00015548,2]
[408892786,1774401045004,-374.68,0.00015563,2]
[408892787,1774401045013,-433.0,0.00015573,2]
[408892788,1774401045022,-12318.36988823,0.00015584,2]
[408892789,1774401045031,-500.0,0.00015584,2]
[408892790,1774401045041,-151.0,0.00015584,2]
[408892791,1774401045050,-339.03559191,0.00015584,2]
[408892792,1774401045291,-500.0,0.00015589,2]
[408892793,1774401045301,-3483.97,0.000156,2]
[408892794,1774401045310,-1189.58,0.000156,2]
[408892795,1774401045320,-400.0,0.000156,5]
[408892796,1774401045329,-2000.0,0.000156,2]
[408892797,1774401045339,-11464.22739943,0.00015625,2]
[408892798,1774401045348,-11707.88029305,0.00015625,2]
[408892799,1774401045358,-1192.0,0.00015631,2]
[408892800,1774401045368,-229.24,0.00015635,2]
[408892801,1774401045381,-10432.7362892,0.00015639,2]
[408892802,1774401045392,-500.0,0.00015639,2]
[408892803,1774401045402,-151.0,0.00015639,2]
[408892804,1774401045415,-6009.0,0.0001564,2]
[408892805,1774401045424,-2467.0,0.0001564,2]
[408892806,1774401045434,-415.0,0.0001564,2]
[408892807,1774401045444,-1214.94214595,0.00015664,2]
[408892808,1774401045453,-895.0,0.00015671,2]
[408892809,1774401045462,-524.0,0.00015671,2]
[408892810,1774401045471,-4169.76277734,0.0001568,2]
[408892811,1774401045480,-1569.0,0.0001568,2]
[408892812,1774401045490,-500.0,0.00015694,2]
[408892813,1774401045499,-151.0,0.00015694,2]
[408892814,1774401045508,-980.74677257,0.000157,2]
[408892815,1774401045517,-400.0,0.000157,5]
[408892816,1774401045527,-1000.0,0.00015723,2]
[408892817,1774401045536,-1000.0,0.00015723,2]
[408892818,1774401045546,-1000.0,0.00015723,2]
[408892819,1774401045555,-1000.0,0.00015723,2]
[408892820,1774401045565,-1000.0,0.00015723,2]
[408892821,1774401045574,-1000.0,0.00015723,2]
[408892822,1774401045583,-1000.0,0.00015723,2]
[408892823,1774401045593,-1000.0,0.00015734,2]
[408892824,1774401045602,-500.0,0.00015747,2]
[408892825,1774401045610,-500.0,0.00015747,2]
[408892826,1774401045619,-500.0,0.00015747,2]
[408892827,1774401045629,-500.0,0.00015747,2]
[408892828,1774401045637,-500.0,0.00015747,2]
[408892829,1774401045647,-500.0,0.00015747,2]
[408892830,1774401045656,-500.0,0.00015747,2]
[408892831,1774401045665,-151.0,0.00015747,2]
[408892832,1774401045674,-151.0,0.00015747,2]
[408892833,1774401045684,-151.0,0.00015747,2]
[408892834,1774401045693,-265.933098,0.00015747,2]
[408892835,1774401045702,-500.0,0.00015747,2]
[408892836,1774401045711,-500.0,0.00015747,2]
[408892837,1774401045720,-500.0,0.00015747,2]
[408892838,1774401045729,-151.0,0.00015747,2]
[408892839,1774401045738,-181.08010149,0.00015747,2]
[408892840,1774401045748,-200.0,0.00015747,2]
[408892841,1774401045758,-719.04747942,0.00015747,2]
[408892842,1774401045767,-217.15233878,0.00015747,2]
[408892843,1774401045776,-290.26104003,0.00015747,2]
[408892844,1774401045785,-771.01748645,0.00015747,2]
[408892845,1774401045794,-500.0,0.00015749,2]
[408892846,1774401045803,-151.0,0.00015749,2]
[408892847,1774401045811,-2269.22,0.00015753,2]
[408892848,1774401045820,-1000.0,0.00015764,2]
[408892849,1774401045829,-2500.0,0.00015764,2]
[408892850,1774401045838,-2500.0,0.00015764,2]
[408892851,1774401045847,-2500.0,0.00015764,2]
[408892852,1774401045856,-5888.0,0.0001577,2]
[408892853,1774401045865,-500.0,0.00015799,2]
[408892854,1774401045874,-500.0,0.00015799,2]
[408892855,1774401045883,-500.0,0.00015799,2]
[408892856,1774401045893,-500.0,0.00015799,2]
[408892857,1774401045902,-153.5761414,0.000158,2]
[408892858,1774401045911,-32971.9663,0.000158,2]
[408892859,1774401045920,-2000.0,0.000158,2]
[408892860,1774401045929,-400.0,0.000158,5]
[408892861,1774401045938,-791.08795,0.0001584,2]
[408892862,1774401045947,-791.08795,0.0001584,2]
[408892863,1774401045956,-791.08796,0.0001585,2]
[408892864,1774401045965,-500.0,0.00015871,2]
[408892865,1774401045974,-500.0,0.00015872,2]
[408892866,1774401045982,-500.0,0.00015872,2]
[408892867,1774401045991,-200.0,0.00015872,2]
[408892868,1774401046000,-1192.0,0.00015881,2]
[408892869,1774401046009,-200.0,0.00015882,2]
[408892870,1774401046018,-2500.0,0.0001589,2]
[408892871,1774401046028,-247.70884333,0.0001589,2]
[408892872,1774401046036,-1155.82088271,0.0001589,2]
[408892873,1774401046045,-4000.0,0.00015895,2]
[408892874,1774401046054,-10000.0,0.000159,2]
[408892875,1774401046064,-3504.880077,0.000159,2]
[408892876,1774401046073,-332.21130384,0.000159,2]
[408892877,1774401046082,-2395.0,0.000159,2]
[408892878,1774401046091,-11464.22739943,0.000159,2]
[408892879,1774401046100,-1000.0,0.000159,5]
[408892880,1774401046109,-150.0,0.000159,2]
[408892881,1774401046118,-150.0,0.000159,2]
[408892882,1774401046127,-11707.88029305,0.000159,2]
[408892883,1774401046137,-1763.0,0.000159,5]
[408892884,1774401046145,-587.0,0.0001592,2]
[408892885,1774401046154,-416.21,0.00015928,2]
[408892886,1774401046163,-350.0,0.00015968,4]
[408892887,1774401046173,-504.19292087,0.00015973,2]
[408892889,1774401046183,-500.0,0.00015973,2]
[408892891,1774401046192,-500.0,0.00015973,2]
[408892893,1774401046201,-500.0,0.00015973,2]
[408892895,1774401046210,-610.60330757,0.00015973,2]
[408892897,1774401046220,-500.0,0.00015973,2]
[408892899,1774401046230,-1154.241555,0.00015973,2]
[408892901,1774401046239,-1154.241555,0.00015973,2]
[408892903,1774401046247,-1154.241555,0.00015973,2]
[408892905,1774401046258,-1154.241555,0.00015973,2]
[408892907,1774401046267,-651.279647,0.00015973,2]
[408892909,1774401046276,-651.279647,0.00015973,2]
[408892911,1774401046288,-651.279647,0.00015973,2]
[408892913,1774401046297,-651.279647,0.00015973,2]
[408892915,1774401046307,-151.0,0.00015973,2]
[408892917,1774401046317,-159.074341,0.00015997,2]
[408892919,1774401046334,-165.702438,0.00015997,2]
[408892921,1774401046342,-151.0,0.00015997,2]
[408892923,1774401046352,-666.0,0.00015999,2]
[408892925,1774401046362,-519.39340365,0.00015999,2]
[408892927,1774401046372,-500.0,0.00015999,2]
[408892929,1774401046381,-500.0,0.00015999,2]
[408892931,1774401046390,-500.0,0.00015999,2]
[408892933,1774401046399,-500.0,0.00015999,2]
[408892935,1774401046408,-500.0,0.00015999,2]
[408892937,1774401046419,-500.0,0.00015999,2]
[408892939,1774401046428,-210.61405512,0.00015999,2]
[408892941,1774401046439,-154.82251136,0.00015999,2]
[408892943,1774401046448,-500.0,0.00015999,2]
[408892945,1774401046457,-500.0,0.00015999,2]
[408892947,1774401046466,-500.0,0.00015999,2]
[408892950,1774401046476,-500.0,0.00015999,2]
[408892951,1774401046490,-500.0,0.00015999,2]
[408892953,1774401046508,-500.0,0.00015999,2]
[408892955,1774401046524,-500.0,0.00015999,2]
[408892957,1774401046533,-220.99789899,0.00015999,2]
[408892959,1774401046542,-500.0,0.00015999,2]
[408892961,1774401046551,-500.0,0.00015999,2]
[408892963,1774401046560,-500.0,0.00015999,2]
[408892965,1774401046569,-500.0,0.00015999,2]
[408892967,1774401046578,-500.0,0.00015999,2]
[408892969,1774401046587,-338.47316987,0.00015999,2]
[408892972,1774401046596,-500.0,0.00015999,2]
[408892974,1774401046608,-500.0,0.00015999,2]
[408892976,1774401046617,-500.0,0.00015999,2]
[408892978,1774401046626,-500.0,0.00015999,2]
[408892980,1774401046635,-500.0,0.00015999,2]
[408892982,1774401046644,-504.96130328,0.00015999,2]
[408892984,1774401046653,-500.0,0.00015999,2]
[408892986,1774401046662,-500.0,0.00015999,2]
[408892988,1774401046671,-500.0,0.00015999,2]
[408892990,1774401046680,-500.0,0.00015999,2]
[408892992,1774401046689,-500.0,0.00015999,2]
[408892994,1774401046698,-500.0,0.00015999,2]
[408892996,1774401046706,-500.0,0.00015999,2]
[408892998,1774401046715,-500.0,0.00015999,2]
[408893000,1774401046724,-500.0,0.00015999,2]
[408893002,1774401046733,-399.89166551,0.00015999,2]
[408893004,1774401046741,-500.0,0.00015999,2]
[408893006,1774401046750,-631.81161049,0.00015999,2]
[408893008,1774401046759,-300.58358341,0.00015999,2]
[408893010,1774401046768,-500.0,0.00015999,2]
[408893012,1774401046777,-500.0,0.00015999,2]
[408893014,1774401046786,-500.0,0.00015999,2]
[408893016,1774401046795,-500.0,0.00015999,2]
[408893017,1774401046804,-500.0,0.00015999,2]
[408893019,1774401046814,-500.0,0.00015999,2]
[408893021,1774401046823,-534.8771196,0.00015999,2]
[408893023,1774401046832,-500.0,0.00015999,2]
[408893025,1774401046841,-500.0,0.00015999,2]
[408893027,1774401046849,-500.0,0.00015999,2]
[408893029,1774401046858,-500.0,0.00015999,2]
[408893031,1774401046868,-500.0,0.00015999,2]
[408893033,1774401046876,-500.0,0.00015999,2]
[408893035,1774401046885,-500.0,0.00015999,2]
[408893037,1774401046894,-500.0,0.00015999,2]
[408893038,1774401046903,-500.0,0.00015999,2]
[408893039,1774401046912,-500.0,0.00015999,2]
[408893040,1774401046921,-500.0,0.00015999,2]
[408893041,1774401046930,-500.0,0.00015999,2]
[408893042,1774401046939,-500.0,0.00015999,2]
[408893043,1774401046948,-500.0,0.00015999,2]
[408893044,1774401046956,-500.0,0.00015999,2]
[408893045,1774401046966,-500.0,0.00015999,2]
[408893046,1774401046974,-199.53558888,0.00015999,2]
[408893047,1774401046986,-500.0,0.00015999,2]
[408893048,1774401046995,-500.0,0.00015999,2]
[408893049,1774401047004,-500.0,0.00015999,2]
[408893050,1774401047013,-500.0,0.00015999,2]
[408893051,1774401047022,-500.0,0.00015999,2]
[408893052,1774401047031,-500.0,0.00015999,2]
[408893053,1774401047039,-500.0,0.00015999,2]
[408893054,1774401047048,-500.0,0.00015999,2]
[408893055,1774401047057,-500.0,0.00015999,2]
[408893056,1774401047066,-500.0,0.00015999,2]
[408893057,1774401047075,-500.0,0.00015999,2]
[408893058,1774401047084,-500.0,0.00015999,2]
[408893060,1774401047093,-500.0,0.00015999,2]
[408893062,1774401047102,-500.0,0.00015999,2]
[408893064,1774401047113,-500.0,0.00015999,2]
[408893065,1774401047122,-370782.18446738,0.00016,2]
[408893123,1774401047653,-277.1987,0.00016,2]
[408893126,1774401047664,-645.52846288,0.00016,2]
[408893128,1774401047675,-1386.70499995,0.00016,2]
[408893156,1774401048464,-1000.0,0.00013384,2]
[408893157,1774401048473,-40049.2077956,0.00016,2]
[408893158,1774401048526,-18.99072107,0.00016,2]
[408893159,1774401048540,-5038.18168835,0.00016,2]
[408893160,1774401048551,-4362.25192,0.00016,2]
[408893161,1774401048577,-836.50958531,0.00016,2]
[408893162,1774401048588,-931.86771549,0.00016,2]
[408893163,1774401048949,-155.9113088,0.00013542,2]
[408893164,1774401048960,-227.31916593,0.0001546,2]
[408893165,1774401048970,-524.0,0.00015731,2]
[408893166,1774401048980,-895.0,0.00015731,2]
[408893167,1774401048991,-246.26952529,0.000159,2]
[408893168,1774401049009,-5889.12600981,0.000159,2]
[408893169,1774401049019,-86181.59806831,0.00016,2]
[408893170,1774401049030,-117820.0,0.00016,2]
[408893171,1774401049043,-2804.45789695,0.00016,2]
[408893172,1774401049058,-11718.36974591,0.00016,2]
[408893173,1774401049069,-22150.04858191,0.00016,2]
[408893174,1774401049080,-48912.13487972,0.00016,2]
[408893175,1774401049119,-799.78639388,0.00016,2]
[408893176,1774401148983,157.0,0.000112,5]
[408893177,1774401181410,1600.0,0.00012303,2]
[408893179,1774401250564,-2059.3939,0.00013284,2]
[408893180,1774401250586,-22613.407,0.00013284,2]
[408893181,1774401250608,-2500.0,0.00013384,2]
[408893182,1774401250631,-1000.0,0.00013384,2]
[408893183,1774401250651,-150.0,0.00013697,2]
[408893184,1774401250673,-500.0,0.00013698,2]
[408893185,1774401250695,-500.0,0.00013698,2]
[408893186,1774401250716,-500.0,0.00013698,2]
[408893187,1774401250736,-500.0,0.00013698,2]
[408893188,1774401250758,-500.0,0.00013698,2]
[408893189,1774401250779,-154.82251136,0.00013698,2]
[408893190,1774401250800,-150.0,0.00013772,2]
[408893191,1774401250824,-1600.0,0.00013841,2]
[408893192,1774401250846,-1100.0,0.00014082,2]
[408893193,1774401250867,-1400.0,0.00014082,2]
[408893194,1774401250891,-600.0,0.00014227,2]
[408893195,1774401250914,-300.0,0.00014227,2]
[408893196,1774401250937,-302.87275784,0.00014227,2]
[408893197,1774401250959,-500.0,0.00014489,2]
[408893198,1774401250981,-406.98,0.00014508,2]
[408893199,1774401251003,-150.99,0.00014508,2]
[408893200,1774401251024,-299.99,0.00014508,2]
[408893201,1774401251047,-5030.46,0.00014508,2]
[408893202,1774401251068,-1151.0838308,0.00014508,2]
[408893206,1774401755030,155.04,6.615e-05,2]
[408893207,1774401755234,155.04,7.166e-05,2]
[408893208,1774401755762,155.04,7.717e-05,2]
[408893209,1774401755950,155.04,8.268e-05,2]
[408893210,1774401756047,155.04,8.819e-05,2]
[408893211,1774401756126,155.04,9.371e-05,2]
[408893212,1774401756288,155.04,9.922e-05,2]
[408893213,1774401756479,155.04,0.00010473,2]
[408893214,1774401756676,155.04,0.00011024,2]
[408893215,1774401756886,155.04,0.00011575,2]
[408893216,1774401757106,155.04,0.00012127,2]
[408893217,1774401950142,-155.04,0.00012678,2]
[408893218,1774401950162,-146.97991014,0.00012851,2]
[408893219,1774402033086,-4287.53205151,0.00012851,2]
[408893220,1774402036114,-1484.7379052,0.00012851,2]
[408893221,1774402137839,5000.01,9.5e-05,3]
[408893222,1774402137863,1233.95715476,9.5e-05,3]
[408893230,1774402232148,-306.0,0.00012758,2]
[408893231,1774402232157,-200.0,0.00012758,2]
[408893232,1774402232167,-194.36150344,0.00012758,2]
[408893233,1774402232179,-105.63849656,0.00012758,2]
[408893234,1774402232188,-2606.17013315,0.00012851,2]
[408893235,1774402232198,-150.0,0.00012851,14]
[408893236,1774402232207,-250.0,0.00012926,2]
[408893238,1774402232216,-3900.01161445,0.00013,2]
[408893240,1774402232226,-166.66,0.00013055,2]
[408893241,1774402232235,-150.0,0.000131,2]
[408893243,1774402232244,-300.0,0.00013152,2]
[408893245,1774402232254,-1200.0,0.00013152,2]
[408893248,1774402232263,-242.61681453,0.00013154,2]
[408893250,1774402232274,-41596.7118,0.00013155,2]
[408893252,1774402232283,-150.0,0.00013227,2]
[408893253,1774402232292,-4084.42,0.00013228,2]
[408893255,1774402232301,-155.04,0.00013229,2]
[408893256,1774402232311,-1501.25635992,0.00013284,2]
[408893257,1774402232334,-1309.68764366,0.00013284,2]
[408893258,1774402232346,-326.03172292,0.00013284,2]
[408893259,1774402232357,-3626.5489735,0.00013284,2]
[408893260,1774402232366,-875.6608,0.00013284,2]
[408893261,1774402232375,-166.66,0.0001333,2]
[408893262,1774402232385,-976.11889406,0.00013384,2]
[408893263,1774402232396,-2158.50000001,0.00013384,2]
[408893264,1774402232407,-2564.78175118,0.00013384,2]
[408893265,1774402232418,-706.82415317,0.00013384,2]
[408893266,1774402232430,-343.29292514,0.00013384,2]
[408893267,1774402232441,-2854.920635,0.00013384,2]
[408893268,1774402232453,-951.1048631,0.00013384,2]
[408893269,1774402232464,-718.27677834,0.00013384,2]
[408893270,1774402232473,-145.78528833,0.00013384,2]
[408893271,1774402232484,-424.84285358,0.00013384,2]
[408893272,1774402232495,-3144.51543592,0.00013384,2]
[408893273,1774402232757,-0.17379097,0.00013384,2]
[408893274,1774402232790,-133.5926312,0.00013384,2]
[408893275,1774402232799,-133.78472074,0.00013384,2]
[408893276,1774402232811,-166.20527926,0.00013384,2]
[408893277,1774402232820,-150.99,0.00013384,2]
[408893278,1774402232830,-150.99,0.00013384,2]
[408893279,1774402232841,-2780.23106102,0.00013384,2]
[408893280,1774402238046,-3199.83983917,0.00013384,2]
[408893345,1774402240079,-4019.91909981,0.00013384,2]
[408893346,1774402240089,-15992.7351571,0.00013384,2]
[408893347,1774402240232,-16979.2311429,0.00013384,2]
[408893348,1774402240242,-150.26538518,0.00013432,2]
[408893349,1774402240253,-151.0,0.00013433,2]
[408893350,1774402240263,-1522.0,0.00013433,2]
[408893351,1774402240272,-1522.0,0.00013433,2]
[408893352,1774402240283,-160.0,0.00013433,2]
[408893353,1774402240292,-1522.0,0.00013433,2]
[408893354,1774402240302,-1522.0,0.00013433,2]
[408893355,1774402240311,-1522.0,0.00013433,2]
[408893356,1774402240320,-1522.0,0.00013433,2]
[408893357,1774402240330,-430.788209,0.00013433,2]
[408893358,1774402240340,-1000.0,0.000135,2]
[408893359,1774402240348,-166.66,0.00013605,2]
[408893360,1774402240594,-1272.0,0.0001365,2]
[408893361,1774402240604,-1353.9814088,0.00013677,2]
[408893362,1774402240613,-334.0,0.00013686,2]
[408893363,1774402240622,-150.0,0.00013699,2]
[408893364,1774402240631,-150.0,0.00013699,2]
[408893365,1774402240640,-164.47,0.00013699,2]
[408893366,1774402240650,-200.0,0.00013699,2]
[408893367,1774402240659,-429.58746921,0.00013714,2]
[408893368,1774402240668,-704.0,0.00013762,2]
[408893369,1774402240678,-271.0,0.0001379,2]
[408893370,1774402240688,-2895.48,0.00013863,2]
[408893371,1774402240697,-200.0,0.00013876,2]
[408893372,1774402240709,-2500.0,0.00013879,2]
[408893373,1774402240720,-500.0,0.00013879,2]
[408893374,1774402240728,-166.66,0.00013879,2]
[408893375,1774402240738,-4610.13300546,0.00013889,2]
[408893376,1774402240747,-8195.51620518,0.000139,2]
[408893377,1774402240758,-311.0,0.00013903,2]
[408893378,1774402240768,-232.0,0.00013931,2]
[408893379,1774402240778,-3240.0,0.00013959,2]
[408893380,1774402240789,-229.24,0.0001396,2]
[408893381,1774402240797,-500.0,0.00013971,2]
[408893382,1774402240808,-500.0,0.00013971,2]
[408893383,1774402240818,-500.0,0.00013971,2]
[408893384,1774402240828,-500.0,0.00013971,2]
[408893385,1774402240839,-500.0,0.00013971,2]
[408893386,1774402240849,-500.0,0.00013971,2]
[408893387,1774402240858,-500.0,0.00013971,2]
[408893388,1774402240869,-200.0,0.00013971,2]
[408893389,1774402240879,-500.0,0.00013971,2]
[408893390,1774402240889,-500.0,0.00013971,2]
[408893391,1774402240898,-500.0,0.00013971,2]
[408893392,1774402240908,-500.0,0.00013971,2]
[408893393,1774402240917,-151.0,0.00013971,2]
[408893394,1774402240926,-151.0,0.00013971,2]
[408893395,1774402240936,-151.0,0.00013971,2]
[408893396,1774402240945,-151.0,0.00013971,2]
[408893397,1774402240954,-151.0,0.00013971,2]
[408893398,1774402240963,-151.0,0.00013971,2]
[408893399,1774402240973,-151.0,0.00013971,2]
[408893400,1774402240982,-151.0,0.00013971,2]
[408893401,1774402240991,-151.0,0.00013971,2]
[408893402,1774402241000,-151.0,0.00013971,2]
[408893403,1774402241011,-151.0,0.00013971,2]
[408893404,1774402241020,-816.45,0.00013971,2]
[408893405,1774402241030,-500.0,0.00013973,2]
[408893406,1774402241041,-500.0,0.00013973,2]
[408893407,1774402241051,-502.26356186,0.00013973,2]
[408893408,1774402241060,-500.0,0.00013973,2]
[408893409,1774402241071,-500.0,0.00013973,2]
[408893410,1774402241081,-500.0,0.00013973,2]
[408893411,1774402241092,-500.0,0.00013973,2]
[408893412,1774402241101,-500.0,0.00013973,2]
[408893413,1774402241110,-500.0,0.00013973,2]
[408893414,1774402241120,-500.0,0.00013973,2]
[408893415,1774402241130,-500.0,0.00013979,2]
[408893416,1774402241142,-500.0,0.00013979,2]